Workbook

Sheet Sheet1
A1: Rays at a single spherical interface in the paraxial approximation.
C3: x | D3: z | G3: Type Ctrl+m to run the macro.
A4: R1 (cm) | B4: 3 | C4: 2 | D4: =-SIGN($B$4)*SQRT($B$4^2-C4^2)+$B$4 -> 0.7639320225
C5: =C4-0.1 -> 1.9 | D5: =-SIGN($B$4)*SQRT($B$4^2-C5^2)+$B$4 -> 0.6783626468
C6: =C5-0.1 -> 1.8 | D6: 0.6
C7: 1.7 | D7: 0.5281585811
A8: n1 | B8: 1 | C8: 1.6 | D8: 0.4622844919
A9: n2 | B9: 1.5 | C9: 1.5 | D9: 0.4019237886
C10: 1.4 | D10: 0.3467001677
A11: object x | B11: 0.3 | C11: 1.3 | D11: 0.2962988331
A12: object z | B12: -18 | C12: 1.2 | D12: 0.250454583
A13: q(max) | B13: 0.05 | C13: 1.1 | D13: 0.2089428526
A14: limit | B14: 20 | C14: 1 | D14: 0.1715728753
C15: 0.9 | D15: 0.1381823957
C16: 0.8 | D16: 0.108633541
C17: 0.7 | D17: 0.08280957084
C18: 0.6 | D18: 0.06061230866
C19: 0.5 | D19: 0.04196010845
C20: 0.4 | D20: 0.02678625054
C21: 0.3 | D21: 0.01503768868
C22: 0.2 | D22: 0.006674090581
C23: 0.1 | D23: 0.001667129887
C24: -6.383782392e-16 | D24: 0 | F24: The ray tracing matrices:
C25: -0.1 | D25: 0.001667129887 | F25: T23 | H25: R | J25: T12 | L25: r1
C26: =C25-0.1 -> -0.2 | D26: 0.006674090581 | F26: 1 | G26: 0 | H26: 1 | I26: =(B8-B9)/B4 -> -0.1666666667 | J26: 1 | K26: 0 | L26: =B8*B13 -> 0.05
C27: -0.3 | D27: 0.01503768868 | F27: =B14/B9 -> 13.33333333 | G27: 1 | H27: 0 | I27: 1 | J27: =-B12/B8 -> 18 | K27: 1 | L27: =B11 -> 0.3
C28: -0.4 | D28: 0.02678625054 | F28: The results of the matrix multiplications:
C29: -0.5 | D29: 0.04196010845 | F29: =MMULT(F26:G27,H29:H30) -> -0.15 | H29: =MMULT(H26:I27,J29:J30) -> -0.15 | J29: =MMULT(J26:K27,L26:L27) -> 0.05
C30: -0.6 | D30: 0.06061230866 | F30: -0.8 | H30: 1.2 | J30: 1.2
C31: =C30-0.1 -> -0.7 | D31: 0.08280957084
C32: =C31-0.1 -> -0.8 | D32: 0.108633541
C33: =C32-0.1 -> -0.9 | D33: 0.1381823957 | F33: Results:
C34: =C33-0.1 -> -1 | D34: 0.1715728753 | E34: z | F34: -18 | G34: 0 | H34: 20
C35: =C34-0.1 -> -1.1 | D35: 0.2089428526 | E35: ray1 x | F35: 0.3 | G35: 1.2 | H35: -0.8
C36: -1.2 | D36: 0.250454583 | E36: ray2 x | F36: 0.3 | G36: 0.9 | H36: -0.6555555556
C37: -1.3 | D37: 0.2962988331 | E37: ray3 x | F37: 0.3 | G37: 0.6 | H37: -0.5111111111
C38: -1.4 | D38: 0.3467001677 | E38: ray4 x | F38: 0.3 | G38: 0.3 | H38: -0.3666666667
C39: -1.5 | D39: 0.4019237886 | E39: ray5 x | F39: 0.3 | G39: 1.110223025e-16 | H39: -0.2222222222
C40: -1.6 | D40: 0.4622844919 | E40: ray6 x | F40: 0.3 | G40: -0.3 | H40: -0.07777777778
C41: -1.7 | D41: 0.5281585811 | E41: ray7 x | F41: 0.3 | G41: -0.6 | H41: 0.06666666667
C42: -1.8 | D42: 0.6
C43: -1.9 | D43: 0.6783626468
C44: -2 | D44: 0.7639320225
